fUSD/lending_fUSD_20250822
["ID","MTS","AMOUNT","RATE_DAILY","PERIOD"]
[380932318,1755906647296,-629.35,0.00013698,2]
[380932319,1755906647305,-400.0,0.00013698,2]
[380932320,1755906647315,-655.82,0.00013698,2]
[380932321,1755906647325,-400.0,0.00013698,2]
[380932322,1755906647334,-1229.59,0.00013698,2]
[380932323,1755906647344,-400.0,0.00013698,2]
[380932324,1755906647354,-459.28,0.00013698,2]
[380932325,1755906647364,-628.81,0.00013698,2]
[380932326,1755906647374,-400.0,0.00013698,2]
[380932327,1755906647383,-676.33,0.00013698,2]
[380932328,1755906647393,-400.0,0.00013698,2]
[380932329,1755906647402,-677.53,0.00013698,2]
[380932330,1755906647412,-400.0,0.00013698,2]
[380932331,1755906647424,-548.46,0.00013698,2]
[380932332,1755906647434,-400.0,0.00013698,2]
[380932333,1755906647444,-400.0,0.00013698,2]
[380932334,1755906647454,-400.0,0.00013698,2]
[380932335,1755906647463,-400.0,0.00013698,2]
[380932336,1755906647474,-998.43,0.00013698,2]
[380932337,1755906647484,-531.16771776,0.00013698,2]
[380932338,1755906647494,-400.0,0.00013698,2]
[380932339,1755906647504,-263.18963006,0.00013698,2]
[380932340,1755906647514,-466.33,0.00013698,2]
[380932341,1755906647523,-559.25,0.00013698,2]
[380932342,1755906647532,-400.0,0.00013698,2]
[380932343,1755906647542,-522.31106786,0.00013698,2]
[380932344,1755906647551,-412.32,0.00013698,2]
[380932345,1755906647560,-849.13,0.00013698,2]
[380932346,1755906647570,-1053.53,0.00013698,2]
[380932347,1755906647579,-785.07,0.00013698,2]
[380932348,1755906647589,-510.15,0.00013698,2]
[380932349,1755906647599,-400.0,0.00013698,2]
[380932350,1755906647608,-943.92,0.00013698,2]
[380932351,1755906647618,-920.28,0.00013698,2]
[380932352,1755906647627,-400.0,0.00013698,2]
[380932353,1755906647637,-400.0,0.00013698,2]
[380932354,1755906647646,-400.0,0.00013698,2]
[380932355,1755906647656,-748.59,0.00013698,2]
[380932356,1755906647665,-400.0,0.00013698,2]
[380932357,1755906647674,-801.18,0.00013698,2]
[380932358,1755906647684,-402.53,0.00013698,2]
[380932359,1755906647694,-400.0,0.00013698,2]
[380932360,1755906647704,-400.0,0.00013698,2]
[380932361,1755906647714,-264.23998431,0.00013698,2]
[380932362,1755906647723,-739.69,0.00013698,2]
[380932363,1755906647733,-413.86,0.00013698,2]
[380932364,1755906647743,-798.33,0.00013698,2]
[380932365,1755906647752,-1043.76,0.00013698,2]
[380932366,1755906647761,-614.44,0.00013698,2]
[380932367,1755906647771,-400.0,0.00013698,2]
[380932368,1755906647780,-400.0,0.00013698,2]
[380932369,1755906647790,-1457.06,0.00013698,2]
[380932370,1755906647800,-792.3,0.00013698,2]
[380932371,1755906647809,-400.0,0.00013698,2]
[380932372,1755906647819,-1347.44,0.00013698,2]
[380932373,1755906647829,-831.85,0.00013698,2]
[380932374,1755906647839,-732.83,0.00013698,2]
[380932375,1755906647848,-400.0,0.00013698,2]
[380932376,1755906648016,-400.0,0.00013698,2]
[380932377,1755906648026,-400.0,0.00013698,2]
[380932378,1755906648035,-495.22,0.00013698,2]
[380932379,1755906648045,-865.25,0.00013698,2]
[380932380,1755906648054,-400.0,0.00013698,2]
[380932381,1755906648064,-400.0,0.00013698,2]
[380932382,1755906648073,-885.15,0.00013698,2]
[380932383,1755906648082,-400.0,0.00013698,2]
[380932384,1755906648091,-406.88,0.00013698,2]
[380932385,1755906648101,-1849.22,0.00013698,2]
[380932386,1755906648110,-400.0,0.00013698,2]
[380932387,1755906648120,-400.0,0.00013698,2]
[380932388,1755906648129,-557.28,0.00013698,2]
[380932389,1755906648138,-400.0,0.00013698,2]
[380932390,1755906648147,-868.99,0.00013698,2]
[380932391,1755906648156,-862.87,0.00013698,2]
[380932392,1755906648166,-770.01,0.00013698,2]
[380932393,1755906648176,-716.38,0.00013698,2]
[380932394,1755906648185,-521.57,0.00013698,2]
[380932395,1755906648194,-400.0,0.00013698,2]
[380932396,1755906648204,-1099.08,0.00013698,2]
[380932397,1755906648213,-400.0,0.00013698,2]
[380932398,1755906648223,-400.0,0.00013698,2]
[380932399,1755906648233,-2974.88,0.00013698,2]
[380932400,1755906648242,-400.0,0.00013698,2]
[380932401,1755906648252,-400.0,0.00013698,2]
[380932402,1755906648261,-432.5,0.00013698,2]
[380932403,1755906648270,-515.99,0.00013698,2]
[380932404,1755906648280,-400.0,0.00013698,2]
[380932405,1755906648289,-400.0,0.00013698,2]
[380932406,1755906648298,-400.0,0.00013698,2]
[380932407,1755906648307,-564.39,0.00013698,2]
[380932408,1755906648317,-400.0,0.00013698,2]
[380932409,1755906648326,-454.05,0.00013698,2]
[380932410,1755906648336,-682.97,0.00013698,2]
[380932411,1755906648346,-537.02,0.00013698,2]
[380932412,1755906648355,-905.83,0.00013698,2]
[380932413,1755906648364,-851.61,0.00013698,2]
[380932414,1755906648374,-452.07,0.00013698,2]
[380932415,1755906648383,-400.0,0.00013698,2]
[380932416,1755906648392,-488.62,0.00013698,2]
[380932417,1755906648402,-451.41,0.00013698,2]
[380932418,1755906648412,-400.0,0.00013698,2]
[380932419,1755906648423,-400.0,0.00013698,2]
[380932420,1755906648433,-1142.04,0.00013698,2]
[380932421,1755906648443,-1326.92,0.00013698,2]
[380932422,1755906648453,-213.17614164,0.00013698,2]
[380932423,1755906648462,-1000.0,0.00013698,2]
[380932424,1755906648472,-1168.25,0.00013698,2]
[380932425,1755906648482,-400.0,0.00013698,2]
[380932426,1755906648493,-400.0,0.00013698,2]
[380932427,1755906648502,-8008.93,0.00013698,2]
[380932428,1755906648512,-500.0,0.00013698,2]
[380932429,1755906648522,-828.45,0.00013698,2]
[380932430,1755906648531,-411.61,0.00013698,2]
[380932431,1755906648541,-400.0,0.00013698,2]
[380932432,1755906648550,-400.0,0.00013698,2]
[380932433,1755906648560,-150.0,0.00013698,2]
[380932434,1755906648569,-400.0,0.00013698,2]
[380932435,1755906648578,-2102.29,0.00013698,2]
[380932436,1755906648589,-654.71,0.00013698,2]
[380932437,1755906648599,-1016.19,0.00013698,2]
[380932438,1755906648609,-400.0,0.00013698,2]
[380932439,1755906648618,-1395.07,0.00013698,2]
[380932440,1755906648628,-400.0,0.00013698,2]
[380932441,1755906648637,-400.0,0.00013698,2]
[380932442,1755906648647,-400.0,0.00013698,2]
[380932443,1755906648657,-537.12,0.00013698,2]
[380932444,1755906648666,-413.11,0.00013698,2]
[380932445,1755906648676,-400.0,0.00013698,2]
[380932446,1755906648686,-537.64,0.00013698,2]
[380932447,1755906648697,-1022.95,0.00013698,2]
[380932448,1755906648706,-530.05,0.00013698,2]
[380932449,1755906648716,-1220.48,0.00013698,2]
[380932450,1755906648726,-1265.92,0.00013698,2]
[380932451,1755906648736,-526.37,0.00013698,2]
[380932452,1755906648747,-484.42,0.00013698,2]
[380932453,1755906648758,-438.68,0.00013698,2]
[380932454,1755906648767,-489.22,0.00013698,2]
[380932455,1755906648777,-400.0,0.00013698,2]
[380932456,1755906648787,-671.2,0.00013698,2]
[380932457,1755906648796,-400.0,0.00013698,2]
[380932458,1755906648806,-777.4,0.00013698,2]
[380932459,1755906648815,-400.0,0.00013698,2]
[380932460,1755906648825,-400.0,0.00013698,2]
[380932461,1755906648835,-508.77,0.00013698,2]
[380932462,1755906648846,-667.03,0.00013698,2]
[380932463,1755906648855,-400.0,0.00013698,2]
[380932464,1755906648865,-400.0,0.00013698,2]
[380932465,1755906648875,-739.49,0.00013698,2]
[380932466,1755906648884,-607.29,0.00013698,2]
[380932467,1755906648894,-400.0,0.00013698,2]
[380932468,1755906648904,-921.27,0.00013698,2]
[380932469,1755906648913,-920.12,0.00013698,2]
[380932470,1755906648923,-400.0,0.00013698,2]
[380932471,1755906648932,-766.39,0.00013698,2]
[380932472,1755906648946,-400.0,0.00013698,2]
[380932473,1755906648956,-791.11,0.00013698,2]
[380932474,1755906648966,-566.71,0.00013698,2]
[380932475,1755906648976,-893.73,0.00013698,2]
[380932476,1755906648985,-682.39,0.00013698,2]
[380932477,1755906648995,-448.17,0.00013698,2]
[380932478,1755906649005,-400.0,0.00013698,2]
[380932479,1755906649015,-400.0,0.00013698,2]
[380932480,1755906649025,-714.24,0.00013698,2]
[380932481,1755906649034,-526.24780427,0.00013698,2]
[380932482,1755906649044,-400.0,0.00013698,2]
[380932483,1755906649054,-542.36,0.00013698,2]
[380932484,1755906649063,-400.0,0.00013698,2]
[380932485,1755906649073,-400.0,0.00013698,2]
[380932486,1755906649082,-666.19,0.00013698,2]
[380932487,1755906649092,-844.07,0.00013698,2]
[380932488,1755906649102,-665.36,0.00013698,2]
[380932489,1755906649112,-768.74,0.00013698,2]
[380932490,1755906649123,-752.64,0.00013698,2]
[380932491,1755906649133,-433.87,0.00013698,2]
[380932492,1755906649143,-763.0,0.00013698,2]
[380932493,1755906649152,-400.0,0.00013698,2]
[380932494,1755906649161,-614.03,0.00013698,2]
[380932495,1755906649171,-541.94,0.00013698,2]
[380932496,1755906649184,-830.57,0.00013698,2]
[380932497,1755906649194,-961.73,0.00013698,2]
[380932498,1755906649204,-703.1,0.00013698,2]
[380932499,1755906649214,-988.72,0.00013698,2]
[380932500,1755906649224,-400.0,0.00013698,2]
[380932501,1755906649233,-659.86,0.00013698,2]
[380932502,1755906649242,-1067.07,0.00013698,2]
[380932503,1755906649252,-823.41,0.00013698,2]
[380932504,1755906649261,-462.08,0.00013698,2]
[380932505,1755906649271,-400.0,0.00013698,2]
[380932506,1755906649281,-1248.14,0.00013698,2]
[380932507,1755906649291,-400.0,0.00013698,2]
[380932508,1755906649300,-513.72,0.00013698,2]
[380932509,1755906649310,-577.88,0.00013698,2]
[380932510,1755906649320,-400.0,0.00013698,2]
[380932511,1755906649329,-400.0,0.00013698,2]
[380932512,1755906649339,-973.12,0.00013698,2]
[380932513,1755906649349,-400.0,0.00013698,2]
[380932514,1755906649359,-712.19,0.00013698,2]
[380932515,1755906649368,-738.82,0.00013698,2]
[380932516,1755906649377,-400.0,0.00013698,2]
[380932517,1755906649387,-400.0,0.00013698,2]
[380932518,1755906649397,-426.72,0.00013698,2]
[380932519,1755906649410,-400.0,0.00013698,2]
[380932520,1755906649420,-757.92,0.00013698,2]
[380932521,1755906649431,-630.76,0.00013698,2]
[380932522,1755906649440,-693.28,0.00013698,2]
[380932523,1755906649450,-487.6,0.00013698,2]
[380932524,1755906649460,-604.15,0.00013698,2]
[380932525,1755906649470,-424.39,0.00013698,2]
[380932526,1755906649480,-1004.79,0.00013698,2]
[380932527,1755906649489,-425.84,0.00013698,2]
[380932528,1755906649500,-400.0,0.00013698,2]
[380932529,1755906649510,-809.74,0.00013698,2]
[380932530,1755906649519,-2916.62,0.00013698,2]
[380932531,1755906649529,-400.0,0.00013698,2]
[380932532,1755906649539,-400.0,0.00013698,2]
[380932533,1755906649549,-400.0,0.00013698,2]
[380932534,1755906649559,-400.0,0.00013698,2]
[380932535,1755906649569,-1531.33,0.00013698,2]
[380932536,1755906649579,-473.58,0.00013698,2]
[380932537,1755906649589,-400.0,0.00013698,2]
[380932538,1755906649598,-638.16,0.00013698,2]
[380932539,1755906649608,-611.27,0.00013698,2]
[380932540,1755906649618,-496.31,0.00013698,2]
[380932541,1755906649628,-2007.17,0.00013698,2]
[380932542,1755906649638,-909.92,0.00013698,2]
[380932543,1755906649649,-673.8,0.00013698,2]
[380932544,1755906649658,-933.53,0.00013698,2]
[380932545,1755906649669,-764.09,0.00013698,2]
[380932546,1755906649679,-997.66,0.00013698,2]
[380932547,1755906649688,-773.85,0.00013698,2]
[380932548,1755906649698,-570.09,0.00013698,2]
[380932549,1755906649707,-400.0,0.00013698,2]
[380932550,1755906649717,-841.59,0.00013698,2]
[380932551,1755906649727,-400.0,0.00013698,2]
[380932552,1755906649736,-918.18,0.00013698,2]
[380932553,1755906649746,-400.0,0.00013698,2]
[380932554,1755906649756,-400.0,0.00013698,2]
[380932555,1755906649765,-746.87,0.00013698,2]
[380932556,1755906649775,-400.0,0.00013698,2]
[380932557,1755906649784,-437.44,0.00013698,2]
[380932558,1755906649794,-622.22,0.00013698,2]
[380932559,1755906649804,-223.33217136,0.00013698,2]
[380932560,1755906649814,-1000.22,0.00013698,2]
[380932561,1755906649823,-981.5,0.00013698,2]
[380932562,1755906649833,-400.0,0.00013698,2]
[380932563,1755906649842,-972.58,0.00013698,2]
[380932564,1755906649852,-457.19,0.00013698,2]
[380932565,1755906649861,-400.0,0.00013698,2]
[380932566,1755906649871,-400.0,0.00013698,2]
[380932567,1755906649881,-1075.27,0.00013698,2]
[380932568,1755906649891,-723.52,0.00013698,2]
[380932569,1755906649902,-812.09,0.00013698,2]
[380932570,1755906649911,-438.3,0.00013698,2]
[380932571,1755906649921,-405.17,0.00013698,2]
[380932572,1755906649931,-400.0,0.00013698,2]
[380932573,1755906649941,-150.0,0.00013698,2]
[380932574,1755906649950,-847.81,0.00013698,2]
[380932575,1755906649961,-400.0,0.00013698,2]
[380932576,1755906649971,-400.0,0.00013698,2]
[380932577,1755906649980,-588.3,0.00013698,2]
[380932578,1755906649990,-411.53,0.00013698,2]
[380932579,1755906650000,-690.79,0.00013698,2]
[380932580,1755906650010,-269.45713969,0.00013698,2]
[380932581,1755906650020,-560.7,0.00013698,2]
[380932582,1755906650039,-801.67,0.00013698,2]
[380932583,1755906650051,-713.3,0.00013698,2]
[380932584,1755906650060,-400.0,0.00013698,2]
[380932585,1755906650070,-400.0,0.00013698,2]
[380932586,1755906650080,-459.8,0.00013698,2]
[380932587,1755906650090,-1007.26,0.00013698,2]
[380932588,1755906650099,-400.0,0.00013698,2]
[380932589,1755906650109,-400.0,0.00013698,2]
[380932590,1755906650119,-1773.98,0.00013698,2]
[380932591,1755906650129,-1368.88,0.00013698,2]
[380932592,1755906650138,-515.41,0.00013698,2]
[380932593,1755906650148,-776.08,0.00013698,2]
[380932594,1755906650158,-400.0,0.00013698,2]
[380932595,1755906650167,-500.0,0.00013698,2]
[380932596,1755906650177,-816.2,0.00013698,2]
[380932597,1755906650186,-419.61,0.00013698,2]
[380932598,1755906650196,-417.47,0.00013698,2]
[380932599,1755906650206,-428.46,0.00013698,2]
[380932600,1755906650216,-430.94,0.00013698,2]
[380932601,1755906650226,-432.84,0.00013698,2]
[380932602,1755906650236,-431.75,0.00013698,2]
[380932603,1755906650246,-424.53,0.00013698,2]
[380932604,1755906650256,-433.04,0.00013698,2]
[380932605,1755906650265,-1000.0,0.00013699,2]
[380932606,1755906650275,-1000.0,0.00013699,2]
[380932607,1755906650289,-200.0,0.00013699,2]
[380932608,1755906650299,-610.0,0.00013699,2]
[380932609,1755906650308,-279.35,0.00013699,2]
[380932610,1755906650319,-2648.59,0.00013699,2]
[380932611,1755906650329,-332.08,0.000137,2]
[380932612,1755906650339,-555.74,0.000137,2]
[380932613,1755906650349,-1078.84,0.000137,2]
[380932614,1755906650359,-539.42,0.000137,2]
[380932615,1755906650369,-3300.0,0.000137,5]
[380932616,1755906650379,-1831.0,0.000137,2]
[380932617,1755906650389,-479.3,0.000137,2]
[380932618,1755906650399,-479.3,0.000137,2]
[380932619,1755906650409,-3276.61,0.000137,2]
[380932620,1755906650419,-1000.0,0.00013718,2]
[380932621,1755906650432,-500.0,0.00013719,2]
[380932622,1755906650442,-7277.1555138,0.0001372,2]
[380932623,1755906650452,-2852.0524566,0.0001372,2]
[380932624,1755906650462,-150.0,0.00013724,2]
[380932625,1755906650473,-150.0,0.00013733,2]
[380932626,1755906650483,-822.85104121,0.00013744,2]
[380932627,1755906650493,-150.0,0.00013747,2]
[380932628,1755906650503,-1425.0,0.0001375,2]
[380932629,1755906650514,-2500.0,0.00013761,2]
[380932630,1755906650526,-300.0,0.00013761,2]
[380932631,1755906650537,-2000.0,0.00013761,3]
[380932632,1755906650549,-1425.0,0.0001377,2]
[380932633,1755906650560,-7277.1555138,0.00013781,2]
[380932634,1755906650572,-2852.0524566,0.00013781,2]
[380932635,1755906650583,-151.0,0.00013781,2]
[380932636,1755906650595,-151.0,0.00013781,2]
[380932637,1755906650606,-249.601395,0.00013781,2]
[380932638,1755906650616,-151.0,0.00013781,2]
[380932639,1755906650626,-151.0,0.00013781,2]
[380932640,1755906650637,-315.925098,0.00013781,2]
[380932641,1755906650647,-151.0,0.00013781,2]
[380932642,1755906650657,-315.925098,0.00013781,2]
[380932643,1755906650667,-151.0,0.00013781,2]
[380932644,1755906650677,-315.925098,0.00013781,2]
[380932645,1755906650687,-315.925098,0.00013781,2]
[380932646,1755906650697,-1000.0,0.00013784,2]
[380932647,1755906650708,-1425.0,0.00013786,2]
[380932648,1755906650718,-1425.0,0.00013798,2]
[380932649,1755906650728,-197.318194,0.00013798,2]
[380932650,1755906650738,-197.318194,0.00013798,2]
[380932651,1755906650749,-151.0,0.00013798,2]
[380932652,1755906650762,-197.318194,0.00013798,2]
[380932653,1755906650772,-197.318194,0.00013798,2]
[380932654,1755906650782,-256.717512,0.00013798,2]
[380932655,1755906650792,-151.0,0.00013798,2]
[380932656,1755906650802,-151.0,0.00013798,2]
[380932657,1755906650812,-151.0,0.00013798,2]
[380932658,1755906650822,-151.0,0.00013798,2]
[380932659,1755906650832,-152.775931,0.00013798,2]
[380932660,1755906650842,-166.04,0.000138,2]
[380932661,1755906650852,-4400.0,0.000138,5]
[380932662,1755906650862,-150.0,0.00013802,2]
[380932663,1755906650872,-485.99134297,0.00013815,2]
[380932664,1755906650882,-1000.0,0.00013819,2]
[380932665,1755906650892,-1425.0,0.0001382,2]
[380932666,1755906650902,-261.33773505,0.00013821,2]
[380932667,1755906650912,-150.0,0.00013833,2]
[380932668,1755906650922,-150.0,0.00013833,2]
[380932669,1755906650932,-150.0,0.00013833,2]
[380932670,1755906650942,-150.0,0.00013833,2]
[380932671,1755906650952,-150.0,0.00013833,2]
[380932672,1755906650963,-150.0,0.00013833,2]
[380932673,1755906650972,-150.0,0.00013833,2]
[380932674,1755906650982,-150.0,0.00013833,2]
[380932675,1755906650994,-150.0,0.00013833,2]
[380932676,1755906651004,-150.0,0.00013833,2]
[380932677,1755906651014,-150.0,0.00013833,2]
[380932678,1755906651024,-150.0,0.00013833,2]
[380932679,1755906651034,-150.0,0.00013833,2]
[380932680,1755906651043,-150.0,0.00013833,2]
[380932681,1755906651053,-7277.1555138,0.00013842,2]
[380932682,1755906651063,-2852.0524566,0.00013842,2]
[380932683,1755906651072,-150.0,0.00013854,2]
[380932684,1755906651082,-200.0,0.00013859,2]
[380932685,1755906651092,-200.0,0.0001386,2]
[380932686,1755906651102,-150.0,0.00013864,2]
[380932687,1755906651111,-1000.0,0.00013865,2]
[380932688,1755906651122,-150.0,0.00013868,2]
[380932689,1755906651131,-150.0,0.0001387,2]
[380932690,1755906651141,-821.99947914,0.00013872,2]
[380932691,1755906651150,-150.0,0.00013879,2]
[380932692,1755906651160,-150.0,0.00013881,2]
[380932693,1755906651170,-150.0,0.00013884,2]
[380932694,1755906651180,-150.0,0.0001389,2]
[380932695,1755906651190,-284.3978494,0.00013898,2]
[380932696,1755906651200,-408.42,0.000139,2]
[380932697,1755906651209,-879.06988781,0.000139,2]
[380932698,1755906651220,-879.06988781,0.000139,2]
[380932699,1755906651231,-879.06988781,0.000139,2]
[380932700,1755906651240,-879.06988781,0.000139,2]
[380932701,1755906651250,-879.06988781,0.000139,2]
[380932702,1755906651260,-879.06988781,0.000139,2]
[380932703,1755906651269,-879.06988781,0.000139,2]
[380932704,1755906651279,-5500.0,0.000139,5]
[380932705,1755906651289,-237.448298,0.000139,2]
[380932706,1755906651299,-237.448298,0.000139,2]
[380932707,1755906651310,-237.448298,0.000139,2]
[380932708,1755906651320,-237.448298,0.000139,2]
[380932709,1755906651329,-224.462135,0.000139,2]
[380932710,1755906651339,-151.0,0.000139,2]
[380932711,1755906651349,-151.0,0.000139,2]
[380932712,1755906651358,-170.660697,0.000139,2]
[380932713,1755906651368,-170.660697,0.000139,2]
[380932714,1755906651378,-151.221825,0.000139,2]
[380932715,1755906651388,-151.0,0.000139,2]
[380932716,1755906651398,-151.0,0.000139,2]
[380932717,1755906651408,-151.0,0.000139,2]
[380932718,1755906651417,-170.660697,0.000139,2]
[380932719,1755906651428,-170.660697,0.000139,2]
[380932720,1755906651440,-151.0,0.000139,2]
[380932721,1755906651450,-151.0,0.000139,2]
[380932722,1755906651460,-243.253298,0.000139,2]
[380932723,1755906651471,-151.0,0.000139,2]
[380932724,1755906651481,-196.013141,0.000139,2]
[380932725,1755906651491,-151.0,0.000139,2]
[380932726,1755906651501,-151.0,0.000139,2]
[380932727,1755906651512,-196.013141,0.000139,2]
[380932728,1755906651521,-196.013141,0.000139,2]
[380932729,1755906651532,-196.013141,0.000139,2]
[380932730,1755906651542,-151.0,0.000139,2]
[380932731,1755906651552,-151.0,0.000139,2]
[380932732,1755906651562,-151.0,0.000139,2]
[380932733,1755906651572,-1425.0,0.00013901,2]
[380932734,1755906651582,-7277.1555138,0.00013902,2]
[380932735,1755906651593,-2852.0524566,0.00013902,2]
[380932736,1755906651603,-150.0,0.00013903,2]
[380932737,1755906651613,-500.0,0.00013915,2]
[380932738,1755906651623,-879.06988781,0.00013915,2]
[380932739,1755906651634,-150.0,0.00013918,2]
[380932740,1755906651644,-150.0,0.00013923,2]
[380932741,1755906651654,-150.0,0.00013926,2]
[380932742,1755906651664,-150.0,0.00013929,2]
[380932743,1755906651674,-150.0,0.0001393,2]
[380932744,1755906651684,-150.0,0.00013935,2]
[380932745,1755906651694,-150.0,0.00013935,2]
[380932746,1755906651704,-150.0,0.00013938,2]
[380932747,1755906651714,-150.0,0.00013943,2]
[380932748,1755906651724,-879.06988781,0.00013944,2]
[380932749,1755906651734,-1425.0,0.00013945,2]
[380932750,1755906651743,-150.0,0.00013951,2]
[380932751,1755906651754,-150.0,0.00013951,2]
[380932752,1755906651764,-154.0,0.00013955,2]
[380932753,1755906651775,-154.0,0.00013955,2]
[380932754,1755906651786,-154.0,0.00013955,2]
[380932755,1755906651797,-150.0,0.00013957,2]
[380932756,1755906651807,-792.13733245,0.00013957,2]
[380932757,1755906651818,-1009.58679626,0.00013958,2]
[380932758,1755906651829,-1227.03626007,0.00013958,2]
[380932759,1755906651840,-151.0,0.00013958,2]
[380932760,1755906651851,-151.0,0.00013958,2]
[380932761,1755906651862,-151.0,0.00013958,2]
[380932762,1755906651872,-151.0,0.00013958,2]
[380932763,1755906651883,-151.0,0.00013958,2]
[380932764,1755906651894,-151.0,0.00013958,2]
[380932765,1755906651904,-151.0,0.00013958,2]
[380932766,1755906651915,-151.0,0.00013958,2]
[380932767,1755906651926,-151.0,0.00013958,2]
[380932768,1755906651938,-1444.48572389,0.00013959,2]
[380932769,1755906651948,-1661.9351877,0.00013959,2]
[380932770,1755906651959,-1879.38465151,0.0001396,2]
[380932771,1755906651970,-2096.83411532,0.0001396,2]
[380932772,1755906651981,-5835.1593694,0.0001396,2]
[380932773,1755906651991,-571.08961924,0.00013961,2]
[380932774,1755906652002,-2314.28357913,0.00013961,2]
[380932775,1755906652013,-2531.73304294,0.00013961,2]
[380932776,1755906652023,-300.0,0.00013961,2]
[380932777,1755906652034,-2000.0,0.00013961,3]
[380932778,1755906652045,-2500.0,0.00013961,2]
[380932779,1755906652056,-300.0,0.00013961,2]
[380932780,1755906652067,-2500.0,0.00013961,2]
[380932781,1755906652078,-468.98,0.00013962,2]
[380932782,1755906652089,-1598.16,0.00013962,2]
[380932783,1755906652100,-150.0,0.00013963,2]
[380932784,1755906652111,-7277.1555138,0.00013963,2]
[380932785,1755906652121,-2852.0524566,0.00013963,2]
[380932786,1755906652133,-1800.0,0.0001397,2]
[380932787,1755906652144,-720.65917402,0.0001397,2]
[380932788,1755906652154,-559.23046331,0.0001397,2]
[380932789,1755906652165,-500.0,0.0001397,2]
[380932790,1755906652175,-500.0,0.0001397,2]
[380932791,1755906652185,-151.0,0.0001397,2]
[380932792,1755906652195,-151.0,0.0001397,2]
[380932793,1755906652206,-151.0,0.0001397,2]
[380932794,1755906652216,-151.0,0.0001397,2]
[380932795,1755906652226,-151.0,0.0001397,2]
[380932796,1755906652237,-151.0,0.0001397,2]
[380932797,1755906652248,-151.0,0.0001397,2]
[380932798,1755906652258,-151.0,0.0001397,2]
[380932799,1755906652269,-151.0,0.0001397,2]
[380932800,1755906652279,-151.0,0.0001397,2]
[380932801,1755906652290,-151.0,0.0001397,2]
[380932802,1755906652300,-500.0,0.00013971,2]
[380932803,1755906652310,-933.3924636,0.00013971,2]
[380932804,1755906652321,-1000.0,0.00013971,2]
[380932805,1755906652331,-200.0,0.00013971,2]
[380932806,1755906652342,-109023.16875016,0.00013971,2]
[380932807,1755906653568,-4843.136,0.00013971,2]
[380932808,1755906653595,-150.0,0.00013698,2]
[380932809,1755906653605,-7609.25273435,0.00013971,2]
[380932810,1755906654730,-400.0,0.00013698,2]
[380932811,1755906654740,-431.22710826,0.00013698,2]
[380932812,1755906656267,-92.97289174,0.00013698,2]
[380932813,1755906656277,-307.02710826,0.00013698,2]
[380932814,1755906656293,-92.97289174,0.00013698,2]
[380932815,1755906656302,-383.69710826,0.00013698,2]
[380932817,1755906805870,150.0,0.00011,2]
[380932820,1755906893001,240.0,0.00028767,120]